{"text_format":"1","workbook":"xlsx","n_sheets":5,"sheets":["Report_Form","Substance List","Report_Example(Not contained)","Report_Example(Contained)","List"],"not_rendered":{"charts":0,"images":0,"macros":1,"external_links":1,"defined_names":12,"comments":0,"pivot_tables":0},"unopened":[],"bounds":{"document_bytes":16777216,"sheet_cells":100000,"rows_first":2000,"rows_last":500,"rows_between":2000,"halvings":0,"cell_chars":16384,"cell_head_chars":4096},"cells_cut":0,"cells_raw":0,"read":"whole","date_system":"1900"}

{"sheet":"Report_Form","index":0,"n_rows":137,"n_cols":11,"rows_kept":137,"cut":false,"hidden":false,"merged":[[136,2,136,4],[136,8,136,9],[136,10,136,15],[133,2,133,4],[133,8,133,9],[133,10,133,15],[134,2,134,4],[134,8,134,9],[134,10,134,15],[135,2,135,4],[135,8,135,9],[135,10,135,15],[130,2,130,4],[130,8,130,9],[130,10,130,15],[131,2,131,4],[131,8,131,9],[131,10,131,15],[132,2,132,4],[132,8,132,9],[132,10,132,15],[127,2,127,4],[127,8,127,9],[127,10,127,15],[128,2,128,4],[128,8,128,9],[128,10,128,15],[129,2,129,4],[129,8,129,9],[129,10,129,15],[124,2,124,4],[124,8,124,9],[124,10,124,15],[125,2,125,4],[125,8,125,9],[125,10,125,15],[126,2,126,4],[126,8,126,9],[126,10,126,15],[121,2,121,4],[121,8,121,9],[121,10,121,15],[122,2,122,4],[122,8,122,9],[122,10,122,15],[123,2,123,4],[123,8,123,9],[123,10,123,15],[118,2,118,4],[118,8,118,9],[118,10,118,15],[119,2,119,4],[119,8,119,9],[119,10,119,15],[120,2,120,4],[120,8,120,9],[120,10,120,15],[115,2,115,4],[115,8,115,9],[115,10,115,15],[116,2,116,4],[116,8,116,9],[116,10,116,15],[117,2,117,4],[117,8,117,9],[117,10,117,15],[112,2,112,4],[112,8,112,9],[112,10,112,15],[113,2,113,4],[113,8,113,9],[113,10,113,15],[114,2,114,4],[114,8,114,9],[114,10,114,15],[109,2,109,4],[109,8,109,9],[109,10,109,15],[110,2,110,4],[110,8,110,9],[110,10,110,15],[111,2,111,4],[111,8,111,9],[111,10,111,15],[106,2,106,4],[106,8,106,9],[106,10,106,15],[107,2,107,4],[107,8,107,9],[107,10,107,15],[108,2,108,4],[108,8,108,9],[108,10,108,15],[103,2,103,4],[103,8,103,9],[103,10,103,15],[104,2,104,4],[104,8,104,9],[104,10,104,15],[105,2,105,4],[105,8,105,9],[105,10,105,15],[100,2,100,4],[100,8,100,9],[100,10,100,15],[101,2,101,4],[101,8,101,9],[101,10,101,15],[102,2,102,4],[102,8,102,9],[102,10,102,15],[97,2,97,4],[97,8,97,9],[97,10,97,15],[98,2,98,4],[98,8,98,9],[98,10,98,15],[99,2,99,4],[99,8,99,9],[99,10,99,15],[94,2,94,4],[94,8,94,9],[94,10,94,15],[95,2,95,4],[95,8,95,9],[95,10,95,15],[96,2,96,4],[96,8,96,9],[96,10,96,15],[91,2,91,4],[91,8,91,9],[91,10,91,15],[92,2,92,4],[92,8,92,9],[92,10,92,15],[93,2,93,4],[93,8,93,9],[93,10,93,15],[88,2,88,4],[88,8,88,9],[88,10,88,15],[89,2,89,4],[89,8,89,9],[89,10,89,15],[90,2,90,4],[90,8,90,9],[90,10,90,15],[85,2,85,4],[85,8,85,9],[85,10,85,15],[86,2,86,4],[86,8,86,9],[86,10,86,15],[87,2,87,4],[87,8,87,9],[87,10,87,15],[82,2,82,4],[82,8,82,9],[82,10,82,15],[83,2,83,4],[83,8,83,9],[83,10,83,15],[84,2,84,4],[84,8,84,9],[84,10,84,15],[10,1,10,2],[11,1,11,2],[15,1,15,2],[37,2,37,4],[9,3,9,7],[8,3,8,7],[6,3,6,7],[10,3,10,7],[11,3,11,7],[16,1,16,2],[16,3,16,7],[18,3,18,7],[17,1,17,2],[17,3,17,7],[18,1,18,2],[20,3,20,7],[7,1,7,2],[7,3,7,7],[38,8,38,9],[39,8,39,9],[37,8,37,9],[41,8,41,9],[38,2,38,4],[39,2,39,4],[31,6,31,7],[38,10,38,15],[39,10,39,15],[36,8,36,9],[35,2,35,15],[37,10,37,15],[36,2,36,4],[40,2,40,4],[41,2,41,4],[50,10,50,15],[48,10,48,15],[51,10,51,15],[56,10,56,15],[56,8,56,9],[49,8,49,9],[50,8,50,9],[51,8,51,9],[52,2,52,4],[53,2,53,4],[54,2,54,4],[55,2,55,4],[56,2,56,4],[55,8,55,9],[55,10,55,15],[52,8,52,9],[52,10,52,15],[54,8,54,9],[54,10,54,15],[53,8,53,9],[53,10,53,15],[49,2,49,4],[50,2,50,4],[51,2,51,4],[42,2,42,4],[44,8,44,9],[40,8,40,9],[45,10,45,15],[46,10,46,15],[47,10,47,15],[49,10,49,15],[47,8,47,9],[48,8,48,9],[46,2,46,4],[47,2,47,4],[48,2,48,4],[45,8,45,9],[45,2,45,4],[46,8,46,9],[57,2,57,4],[57,8,57,9],[57,10,57,15],[58,2,58,4],[58,8,58,9],[58,10,58,15],[43,10,43,15],[44,10,44,15],[5,1,5,2],[9,1,9,2],[8,1,8,2],[14,1,14,2],[6,1,6,2],[40,10,40,15],[41,10,41,15],[42,10,42,15],[20,1,20,2],[35,1,36,1],[36,10,36,15],[24,5,24,6],[43,8,43,9],[43,2,43,4],[44,2,44,4],[42,8,42,9],[61,2,61,4],[61,8,61,9],[61,10,61,15],[62,2,62,4],[62,8,62,9],[62,10,62,15],[59,2,59,4],[59,8,59,9],[59,10,59,15],[60,2,60,4],[60,8,60,9],[60,10,60,15],[65,2,65,4],[65,8,65,9],[65,10,65,15],[66,2,66,4],[66,8,66,9],[66,10,66,15],[63,2,63,4],[63,8,63,9],[63,10,63,15],[64,2,64,4],[64,8,64,9],[64,10,64,15],[69,2,69,4],[69,8,69,9],[69,10,69,15],[70,2,70,4],[70,8,70,9],[70,10,70,15],[67,2,67,4],[67,8,67,9],[67,10,67,15],[68,2,68,4],[68,8,68,9],[68,10,68,15],[73,10,73,15],[74,2,74,4],[74,8,74,9],[74,10,74,15],[71,2,71,4],[71,8,71,9],[71,10,71,15],[72,2,72,4],[72,8,72,9],[72,10,72,15],[3,4,3,5],[81,2,81,4],[81,8,81,9],[81,10,81,15],[79,2,79,4],[79,8,79,9],[79,10,79,15],[80,2,80,4],[80,8,80,9],[80,10,80,15],[77,2,77,4],[77,8,77,9],[77,10,77,15],[78,2,78,4],[78,8,78,9],[78,10,78,15],[75,2,75,4],[75,8,75,9],[75,10,75,15],[76,2,76,4],[76,8,76,9],[76,10,76,15],[73,2,73,4],[73,8,73,9]]}
["Rev.02_L03_ER","<Steps for Creation>"]
[null,"(1) See the Manual in the separate sheet and enter the data → (2) Run Check Entry below to confirm → (3) Print REACH Report below"]
[]
[null,null,null,null,"REACH Report   Rev.02L03"]
[null,"1. Information of the Respondent"]
[null,"Date (M/D/Y)   *Required"]
[null,"Person Responsible   *Required"]
[null,"Signature   *Required"]
[null,"Department   *Required"]
[null,"Company   *Required"]
[null,"Phone No."]
[null,"E-mail"]
[]
[null,"2. Information of the Substances"]
[null,"Survey ID   *Required"]
[null,"PFU Group Product No.   *Required"]
[null,"Product Name   *Required"]
[null,"Manufacturer's P/N"]
[null,"Manufacturer's Name"]
[]
[null,"Remarks"]
[]
[null,"3. Contained or Not Contained"]
[]
[null,null,null,null," (Required)"]
[]
[null,null,"  * Not contained (below threshold) : Survey substance is not contained above 0.1wt%, calculated by the product mass as denominator  ⇒ End of entry "]
[null,null,"  * Contained (above threshold)       : Survey substance is contained above 0.1wt%, calculated by the product mass as denominator  ⇒ Go to Item 4"]
[]
[null,null,null,null,null,null,null,null,null,"End"]
[null,null,null,null,null,null,null,null,null,"End"]
[null,"4. Contained Substance      ※Enter only if contained above threshold in Item 3.",null,null,null,null,"Mass of Product [g]",null,null," (Required)"]
[null,null,"*1）Select chemical substances from the pull-down list. For substances subject to survey, refer to the SUBSTANCE LIST of the survey."]
[null,null,"*2) Describe a weight by weight concentration (wt%) of a contained chemical substance calculated by the product mass as denominator."]
[null,null,"*3) Describe weight (mg) of a contained chemical substance in the product."]
[null,"No.","Information of the Target Products (Required)"]
[null,null,"Substance Name *1",null,null,"Threshold Level","Concen-tration *2\n［wt%］","Content\n*3\n［mg］","Contained Portion",null,"Remarks"]
[null,1,null,null,null,"Content rate of the mass of the product is 0.1wt%.",null,{"$f":"IF(G38 > 0,I$32*G38*10,\"\")","v":""}]
[null,{"$f":"B38+1","v":2},null,null,null,"Content rate of the mass of the product is 0.1wt%.",null,""]
[null,{"$f":"B39+1","v":3},null,null,null,"Content rate of the mass of the product is 0.1wt%.",null,""]
[null,4,null,null,null,"Content rate of the mass of the product is 0.1wt%.",null,""]
[null,5,null,null,null,"Content rate of the mass of the product is 0.1wt%.",null,""]
[null,6,null,null,null,"Content rate of the mass of the product is 0.1wt%.",null,""]
[null,7,null,null,null,"Content rate of the mass of the product is 0.1wt%.",null,""]
[null,8,null,null,null,"Content rate of the mass of the product is 0.1wt%.",null,""]
[null,9,null,null,null,"Content rate of the mass of the product is 0.1wt%.",null,""]
[null,10,null,null,null,"Content rate of the mass of the product is 0.1wt%.",null,""]
[null,11,null,null,null,"Content rate of the mass of the product is 0.1wt%.",null,""]
[null,12,null,null,null,"Content rate of the mass of the product is 0.1wt%.",null,""]
[null,13,null,null,null,"Content rate of the mass of the product is 0.1wt%.",null,""]
[null,14,null,null,null,"Content rate of the mass of the product is 0.1wt%.",null,""]
[null,15,null,null,null,"Content rate of the mass of the product is 0.1wt%.",null,""]
[null,16,null,null,null,"Content rate of the mass of the product is 0.1wt%.",null,""]
[null,17,null,null,null,"Content rate of the mass of the product is 0.1wt%.",null,""]
[null,18,null,null,null,"Content rate of the mass of the product is 0.1wt%.",null,""]
[null,19,null,null,null,"Content rate of the mass of the product is 0.1wt%.",null,""]
[null,20,null,null,null,"Content rate of the mass of the product is 0.1wt%.",null,""]
[null,21,null,null,null,"Content rate of the mass of the product is 0.1wt%.",null,""]
[null,22,null,null,null,"Content rate of the mass of the product is 0.1wt%.",null,""]
[null,23,null,null,null,"Content rate of the mass of the product is 0.1wt%.",null,""]
[null,24,null,null,null,"Content rate of the mass of the product is 0.1wt%.",null,""]
[null,25,null,null,null,"Content rate of the mass of the product is 0.1wt%.",null,""]
[null,26,null,null,null,"Content rate of the mass of the product is 0.1wt%.",null,""]
[null,27,null,null,null,"Content rate of the mass of the product is 0.1wt%.",null,""]
[null,28,null,null,null,"Content rate of the mass of the product is 0.1wt%.",null,""]
[null,29,null,null,null,"Content rate of the mass of the product is 0.1wt%.",null,""]
[null,30,null,null,null,"Content rate of the mass of the product is 0.1wt%.",null,""]
[null,31,null,null,null,"Content rate of the mass of the product is 0.1wt%.",null,""]
[null,32,null,null,null,"Content rate of the mass of the product is 0.1wt%.",null,""]
[null,33,null,null,null,"Content rate of the mass of the product is 0.1wt%.",null,""]
[null,34,null,null,null,"Content rate of the mass of the product is 0.1wt%.",null,""]
[null,35,null,null,null,"Content rate of the mass of the product is 0.1wt%.",null,""]
[null,36,null,null,null,"Content rate of the mass of the product is 0.1wt%.",null,""]
[null,37,null,null,null,"Content rate of the mass of the product is 0.1wt%.",null,""]
[null,38,null,null,null,"Content rate of the mass of the product is 0.1wt%.",null,""]
[null,39,null,null,null,"Content rate of the mass of the product is 0.1wt%.",null,""]
[null,40,null,null,null,"Content rate of the mass of the product is 0.1wt%.",null,""]
[null,41,null,null,null,"Content rate of the mass of the product is 0.1wt%.",null,""]
[null,42,null,null,null,"Content rate of the mass of the product is 0.1wt%.",null,""]
[null,43,null,null,null,"Content rate of the mass of the product is 0.1wt%.",null,""]
[null,44,null,null,null,"Content rate of the mass of the product is 0.1wt%.",null,""]
[null,45,null,null,null,"Content rate of the mass of the product is 0.1wt%.",null,""]
[null,46,null,null,null,"Content rate of the mass of the product is 0.1wt%.",null,{"$f":"IF(G83 > 0,I$32*G83*10,\"\")","v":""}]
[null,{"$f":"B83+1","v":47},null,null,null,"Content rate of the mass of the product is 0.1wt%.",null,""]
[null,{"$f":"B84+1","v":48},null,null,null,"Content rate of the mass of the product is 0.1wt%.",null,""]
[null,49,null,null,null,"Content rate of the mass of the product is 0.1wt%.",null,""]
[null,50,null,null,null,"Content rate of the mass of the product is 0.1wt%.",null,""]
[null,51,null,null,null,"Content rate of the mass of the product is 0.1wt%.",null,""]
[null,52,null,null,null,"Content rate of the mass of the product is 0.1wt%.",null,""]
[null,53,null,null,null,"Content rate of the mass of the product is 0.1wt%.",null,""]
[null,54,null,null,null,"Content rate of the mass of the product is 0.1wt%.",null,""]
[null,55,null,null,null,"Content rate of the mass of the product is 0.1wt%.",null,""]
[null,56,null,null,null,"Content rate of the mass of the product is 0.1wt%.",null,""]
[null,57,null,null,null,"Content rate of the mass of the product is 0.1wt%.",null,""]
[null,58,null,null,null,"Content rate of the mass of the product is 0.1wt%.",null,""]
[null,59,null,null,null,"Content rate of the mass of the product is 0.1wt%.",null,""]
[null,60,null,null,null,"Content rate of the mass of the product is 0.1wt%.",null,""]
[null,61,null,null,null,"Content rate of the mass of the product is 0.1wt%.",null,""]
[null,62,null,null,null,"Content rate of the mass of the product is 0.1wt%.",null,""]
[null,63,null,null,null,"Content rate of the mass of the product is 0.1wt%.",null,""]
[null,64,null,null,null,"Content rate of the mass of the product is 0.1wt%.",null,""]
[null,65,null,null,null,"Content rate of the mass of the product is 0.1wt%.",null,""]
[null,66,null,null,null,"Content rate of the mass of the product is 0.1wt%.",null,""]
[null,67,null,null,null,"Content rate of the mass of the product is 0.1wt%.",null,""]
[null,68,null,null,null,"Content rate of the mass of the product is 0.1wt%.",null,""]
[null,69,null,null,null,"Content rate of the mass of the product is 0.1wt%.",null,""]
[null,70,null,null,null,"Content rate of the mass of the product is 0.1wt%.",null,""]
[null,71,null,null,null,"Content rate of the mass of the product is 0.1wt%.",null,""]
[null,72,null,null,null,"Content rate of the mass of the product is 0.1wt%.",null,""]
[null,73,null,null,null,"Content rate of the mass of the product is 0.1wt%.",null,""]
[null,74,null,null,null,"Content rate of the mass of the product is 0.1wt%.",null,""]
[null,75,null,null,null,"Content rate of the mass of the product is 0.1wt%.",null,""]
[null,76,null,null,null,"Content rate of the mass of the product is 0.1wt%.",null,""]
[null,77,null,null,null,"Content rate of the mass of the product is 0.1wt%.",null,""]
[null,78,null,null,null,"Content rate of the mass of the product is 0.1wt%.",null,""]
[null,79,null,null,null,"Content rate of the mass of the product is 0.1wt%.",null,""]
[null,80,null,null,null,"Content rate of the mass of the product is 0.1wt%.",null,""]
[null,81,null,null,null,"Content rate of the mass of the product is 0.1wt%.",null,""]
[null,82,null,null,null,"Content rate of the mass of the product is 0.1wt%.",null,""]
[null,83,null,null,null,"Content rate of the mass of the product is 0.1wt%.",null,""]
[null,84,null,null,null,"Content rate of the mass of the product is 0.1wt%.",null,""]
[null,85,null,null,null,"Content rate of the mass of the product is 0.1wt%.",null,""]
[null,86,null,null,null,"Content rate of the mass of the product is 0.1wt%.",null,""]
[null,87,null,null,null,"Content rate of the mass of the product is 0.1wt%.",null,""]
[null,88,null,null,null,"Content rate of the mass of the product is 0.1wt%.",null,""]
[null,89,null,null,null,"Content rate of the mass of the product is 0.1wt%.",null,""]
[null,90,null,null,null,"Content rate of the mass of the product is 0.1wt%.",null,""]
[null,{"$f":"B127+1","v":91},null,null,null,"Content rate of the mass of the product is 0.1wt%.",null,{"$f":"IF(G128 > 0,I$32*G128*10,\"\")","v":""}]
[null,92,null,null,null,"Content rate of the mass of the product is 0.1wt%.",null,""]
[null,93,null,null,null,"Content rate of the mass of the product is 0.1wt%.",null,""]
[null,94,null,null,null,"Content rate of the mass of the product is 0.1wt%.",null,""]
[null,95,null,null,null,"Content rate of the mass of the product is 0.1wt%.",null,""]
[null,96,null,null,null,"Content rate of the mass of the product is 0.1wt%.",null,""]
[null,97,null,null,null,"Content rate of the mass of the product is 0.1wt%.",null,""]
[null,98,null,null,null,"Content rate of the mass of the product is 0.1wt%.",null,""]
[null,99,null,null,null,"Content rate of the mass of the product is 0.1wt%.",null,""]
[null,100,null,null,null,"Content rate of the mass of the product is 0.1wt%.",null,""]

{"sheet":"Substance List","index":1,"n_rows":185,"n_cols":7,"rows_kept":185,"cut":false,"hidden":false,"merged":[[118,3,119,3],[118,4,119,4],[118,5,119,5],[118,6,119,6],[158,3,159,3],[158,4,159,4],[158,5,159,5],[158,6,159,6],[104,3,105,3],[104,4,105,4],[104,5,105,5],[104,6,105,6],[106,3,107,3],[106,4,107,4],[106,5,107,5],[106,6,107,6],[100,3,101,3],[100,4,101,4],[100,5,101,5],[100,6,101,6],[102,3,103,3],[102,4,103,4],[102,5,103,5],[102,6,103,6],[77,3,78,3],[77,4,78,4],[77,5,78,5],[77,6,78,6],[79,3,80,3],[79,4,80,4],[79,5,80,5],[79,6,80,6],[27,3,28,3],[27,4,28,4],[27,5,28,5],[27,6,28,6],[1,1,1,6],[25,3,26,3],[25,4,26,4],[25,5,26,5],[25,6,26,6]]}
[]
[null,"SUBSTANCE LIST of the survey   Rev.02L03"]
[]
[null,"No.","Substance Name","CAS No.","Threshold Level","Remarks (Applications)","Published on"]
[null,1,"Anthracene","120-12-7","Content rate of the mass of the product is 0.1wt%.","raw material of carbonblack, sensor for radioactive substance detection (scintillator)","2008-10-28"]
[null,2,"4,4’-Diaminodiphenylmethane (4,4'-MDA)","101-77-9","↑","raw material of polyurethane, epoxy resin hardners, raw material of dye","2008-10-28"]
[null,3,"Dibutyl phthalate (DBP)","84-74-2","↑","plasticizer, ink, plastic, adhesive","2008-10-28"]
[null,4,"Cobalt dichloride","7646-79-9","↑","indicator","2008-10-28"]
[null,5,"Diarsenic pentaoxide","1303-28-2","↑","glass","2008-10-28"]
[null,6,"Diarsenic trioxide","1327-53-3","↑","glass","2008-10-28"]
[null,7,"Sodium dichromate","7789-12-0\n10588-01-9","↑","Banned Substances specified by PFU Group (Hexavalent chromium compounds)","2008-10-28"]
[null,8,"5-tert-butyl-2,4,6-trinitro-m-xylene (musk xylene)","81-15-2","↑","fragrance","2008-10-28"]
[null,9,"Bis(2-ethylhexyl)phthalate (DEHP)","117-81-7","↑","plasticizer, dye, pigment, paint, ink, adhesive, lubricant","2008-10-28"]
[null,10,"Hexabromocyclododecane (HBCDD) and\nall major diastereoisomers identified\n(α-HBCDD,β-HBCDD,γ-HBCDD)","25637-99-4\n3194-55-6\n134237-50-6 (α-HBCDD)\n134237-51-7 (β-HBCDD)\n134237-52-8 (γ-HBCDD)","↑","Banned Substances specified by PFU Group","2008-10-28"]
[null,11,"Short Chain Chlorinated Paraffins","85535-84-8","↑","Banned Substances specified by PFU Group","2008-10-28"]
[null,12,"Bis(tributyltin)oxide  (TBTO)","56-35-9","↑","Banned Substances specified by PFU Group","2008-10-28"]
[null,13,"Lead hydrogen arsenate","7784-40-9","↑","Banned Substances specified by PFU Group (Lead compounds)","2008-10-28"]
[null,14,"Benzyl butyl phthalate (BBP)","85-68-7","↑","plasticizer for PVC, ink, adhesive","2008-10-28"]
[null,15,"Triethyl arsenate","15606-95-8","↑","wood preservative","2008-10-28"]
[null,16,"Anthracene oil","90640-80-5","↑","manufacture of anthracene and carbon black","2010-01-13"]
[null,17,"Anthracene oil, anthracene paste, distn. Lights","91995-17-4","↑","manufacture of anthracene and carbon black","2010-01-13"]
[null,18,"Anthracene oil, anthracene paste, anthracene fraction","91995-15-2","↑","manufacture of anthracene and carbon black","2010-01-13"]
[null,19,"Anthracene oil, anthracene-low","90640-82-7","↑","manufacture of anthracene and carbon black","2010-01-13"]
[null,20,"Anthracene oil, anthracene paste","90640-81-6","↑","manufacture of anthracene and carbon black","2010-01-13"]
[null,21,"Coal tar pitch, high temperature","65996-93-2","↑","electrodes","2010-01-13"]
[null,22,"Aluminosilicate, Refractory Ceramic Fibres","-","↑","insulation of furnace, high-temperature insulation\n*)Refer to No.72","2010-01-13"]
[null,null,"Aluminosilicate Refractory Ceramic Fibres are fibres covered by index number 650-017-00-8 in Annex VI, part 3, table 3.2 of Regulation (EC) No 1272/2008 of the European Parliament and of the Council of 16 December 2008 on classification, labelling and packaging of substances and mixtures, and fulfil the two following conditions:\na) Al2O3 and SiO2 are present within the following concentration ranges: \n• Al2O3: 43.5 – 47 % w/w, and SiO2: 49.5 – 53.5 % w/w,\nor \n• Al2O3: 45.5 – 50.5 % w/w, and SiO2: 48.5 – 54 % w/w,\nb) fibres have a length weighted geometric mean diameter less two standard geometric errors of 6 or less micrometres (µm)."]
[null,23,"Zirconia Aluminosilicate, Refractory Ceramic Fibres","-","↑","insulation of furnace, high-temperature insulation\n*)Refer to No.73","2010-01-13"]
[null,null,"Zirconia Aluminosilicate Refractory Ceramic Fibres\nare fibres covered by index number 650-017-00-8 in Annex VI, part 3, table 3.2 of Regulation (EC) No 1272/2008 of the European Parliament and of the Council of 16 December 2008 on classification, labelling and packaging of substances and mixtures, and fulfil the two following conditions:\na) Al2O3, SiO2 and ZrO2 are present within the following concentration ranges: \n• Al2O3: 35 – 36 % w/w, and\n• SiO2: 47.5 – 50 % w/w, and\n• ZrO2: 15 - 17 % w/w, \nb) fibres have a length weighted geometric mean diameter less two standard geometric errors of 6 or less micrometres (µm)."]
[null,24,"2,4-Dinitrotoluene","121-14-2","↑","toluenediisocyanate used for the manufacture of flexible polyurethane foams","2010-01-13"]
[null,25,"Diisobutyl phthalate (DIBP)","84-69-5","↑","plasticizer","2010-01-13"]
[null,26,"Lead chromate","7758-97-6","↑","Banned Substances specified by PFU Group (Hexavalent chromium compounds, Lead compounds)","2010-01-13"]
[null,27,"Lead chromate molybdate sulfate red (C.I. Pigment Red 104)","12656-85-8","↑","Banned Substances specified by PFU Group (Hexavalent chromium compounds, Lead compounds)","2010-01-13"]
[null,28,"C.I. Pigment Yellow 34","1344-37-2","↑","Banned Substances specified by PFU Group (Hexavalent chromium compounds, Lead compounds)","2010-01-13"]
[null,29,"Tris(2-chloroethyl)phosphate (TCEP)","115-96-8","↑","flame retardant, plasticizer","2010-01-13"]
[null,30,"Acrylamide","79-06-1","↑","synthesis of polyacrylamides which are used in waste water treatment, paper processing and paint","2010-03-30"]
[null,31,"Trichloroethylene","79-01-6","↑","cleaning and degreasing of metal parts or as solvent in adhesives","2010-06-18"]
[null,32,"Boric acid","10043-35-3\n11113-50-1","↑","detergents, cleaners, adhesives, flame retardants, paints","2010-06-18"]
[null,33,"Disodium tetraborate, anhydrous","1303-96-4\n1330-43-4\n12179-04-3","↑","detergents, cleaners, adhesives, flame retardants","2010-06-18"]
[null,34,"Tetraboron disodium heptaoxide, hydrate","12267-73-1","↑","detergents, cleaners, adhesives, flame retardants","2010-06-18"]
[null,35,"Sodium chromate","7775-11-3","↑","Banned Substances specified by PFU Group (Hexavalent chromium compounds)","2010-06-18"]
[null,36,"Potassium chromate","7789-00-6","↑","Banned Substances specified by PFU Group (Hexavalent chromium compounds)","2010-06-18"]
[null,37,"Ammonium dichromate","7789-09-5","↑","Banned Substances specified by PFU Group (Hexavalent chromium compounds)","2010-06-18"]
[null,38,"Potassium dichromate","7778-50-9","↑","Banned Substances specified by PFU Group (Hexavalent chromium compounds)","2010-06-18"]
[null,39,"Cobalt(Ⅱ) sulphate","10124-43-3","↑","manufacture of pigments, catalysts and driers, surface  treatments (such as electroplating), corrosion prevention, decolourisation (in glass, pottery), in batteries","2010-12-15"]
[null,40,"Cobalt(Ⅱ) dinitrate","10141-05-6","↑","manufacture of catalysts, surface treatment and in batteries","2010-12-15"]
[null,41,"Cobalt(Ⅱ) carbonate","513-79-1","↑","manufacture of catalysts and pigments, and as an adhesive","2010-12-15"]
[null,42,"Cobalt(Ⅱ) diacetate","71-48-7","↑","manufacture of catalysts or as a catalyst, pigments, surface treatments, in alloys, dyes, rubber adhesion","2010-12-15"]
[null,43,"2-Methoxyethanol","109-86-4","↑","chemical intermediate, solvent","2010-12-15"]
[null,44,"2-Ethoxyethanol","110-80-5","↑","chemical intermediate, solvent","2010-12-15"]
[null,45,"Chromium trioxide","1333-82-0","↑","Banned Substances specified by PFU Group (Hexavalent chromium compounds)","2010-12-15"]
[null,46,"Acids generated from chromium trioxide and their oligomers Group containing:\nChromic acid, Dichromic acid, Oligomers of chromic acid and dichromic acid","7738-94-5 (Chromic acid)\n13530-68-2 (Dichromic acid)\n- (Oligomers)","↑","Banned Substances specified by PFU Group (Hexavalent chromium compounds)","2010-12-15"]
[null,47,"2-Ethoxyethyl acetate","111-15-9","↑","coatings, solvent, intermediate (adhesives)","2011.06.20"]
[null,48,"Strontium chromate","7789-06-2","↑","Banned Substances specified by PFU Group (Hexavalent chromium compounds)","2011.06.20"]
[null,49,"1,2-Benzenedicarboxylic acid,\ndi-C7-11-branched and linear alkyl esters (DHNUP)","68515-42-4","↑","plasticiser in PVC, foam, adhesives, coatings","2011.06.20"]
[null,50,"Hydrazine","7803-57-8\n302-01-2","↑","foaming agent, polymerisation catalysts, reductant, corrosion inhibitor in water treatment","2011.06.20"]
[null,51,"1-methyl-2-pyrrolidone","872-50-4","↑","for semiconductor manufacture, solvent in coatings, cleaning products, pharmaceuticals, agrochemicals","2011.06.20"]
[null,52,"1,2,3-trichloropropane","96-18-4","↑","intermediate in the manufacture of chlorinated solvents, agricultural products, paint, varnish remover","2011.06.20"]
[null,53,"1,2-benzenedicarboxylic acid;\ndi-C6-8-branched alkylesters, C7-rich (DIHP) ","71888-89-6","↑","plasticiser in PVC, sealants, coatings, printing inks","2011.06.20"]
[null,54,"Calcium arsenate","7778-44-1","↑","present in copper, lead, and precious metals\nelectrolytic refining process, manufacture of diarsenic trioxide","2011-12-19"]
[null,55,"Bis(2-methoxyethyl) ether","111-96-6","↑","reaction solvent","2011-12-19"]
[null,56,"Potassium hydroxyoctaoxodizincatedi-chromate","11103-86-9","↑","Banned Substances specified by PFU Group (Hexavalent chromium compounds)","2011-12-19"]
[null,57,"Lead dipicrate","6477-64-1","↑","Banned Substances specified by PFU Group (Lead compounds)","2011-12-19"]
[null,58,"N,N-dimethylacetamide (DMAC)","127-19-5","↑","Reagent, coatings, polyimide films, paint strippers, ink removers","2011-12-19"]
[null,59,"Arsenic acid","7778-39-4","↑","Bubble removal from glass melt, high performance adhesives for laminated printed circuit boards and resin","2011-12-19"]
[null,60,"2-Methoxyaniline; o-Anisidine","90-04-0","↑","manufacture of dyes","2011-12-19"]
[null,61,"Trilead diarsenate","3687-31-8","↑","Banned Substances specified by PFU Group (Lead compounds)","2011-12-19"]
[null,62,"1,2-Dichloroethane","107-06-2","↑","Intermediate, solvent in chemicals","2011-12-19"]
[null,63,"Pentazinc chromate octahydroxide","49663-84-5","↑","Banned Substances specified by PFU Group (Hexavalent chromium compounds)","2011-12-19"]
[null,64,"4-(1,1,3,3-tetramethylbutyl)phenol, (4-tert-Octylphenol)","140-66-9","↑","manufacture of polymer, a component in adhesives, coatings, inks and rubber articles","2011-12-19"]
[null,65,"Formaldehyde, oligomeric reaction products with aniline (technical MDA)","25214-70-4","↑","Intermediate, material for epoxy resins","2011-12-19"]
[null,66,"Bis(2-methoxyethyl) phthalate","117-82-8","↑","plasticizer, paints, lacquers, removers","2011-12-19"]
[null,67,"Lead azide Lead diazide","13424-46-9","↑","Banned Substances specified by PFU Group (Lead compounds)","2011-12-19"]
[null,68,"Lead styphnate","15245-44-0","↑","Banned Substances specified by PFU Group (Lead compounds)","2011-12-19"]
[null,69,"2,2'-dichloro-4,4'-methylenedianiline (MOCA)","101-14-4","↑","curing agent in resin","2011-12-19"]
[null,70,"Phenolphthalein","77-09-8","↑","pH indicator solutions","2011-12-19"]
[null,71,"Dichromium tris (chromate)","24613-89-6","↑","Banned Substances specified by PFU Group (Hexavalent chromium compounds)","2011-12-19"]
[null,72,"Aluminosilicate, Refractory Ceramic Fibres","-","↑","insulation of furnace, high-temperature insulation","2011-12-19"]
[null,null,"Aluminosilicate Refractory Ceramic Fibres are fibres covered by index number 650-017-00-8 in Annex VI, part 3, table 3.1 of Regulation (EC) No 1272/2008 of the European Parliament and of the Council of 16 December 2008 on classification, labelling and packaging of substances and mixtures, and fulfil the three following conditions: \na) oxides of aluminium and silicon are the main components present (in the fibres) within variable concentration ranges \nb) fibres have a length weighted geometric mean diameter less two standard geometric errors of 6 or  less micrometres (µm) \nc) alkaline oxide and alkali earth oxide (Na2O+K2O+CaO+MgO+BaO) content less or equal to 18% by weight "]
[null,73,"Zirconia Aluminosilicate, Refractory Ceramic Fibres","-","↑","insulation of furnace, high-temperature insulation","2011-12-19"]
[null,null,"Zirconia Aluminosilicate Refractory Ceramic Fibres are fibres covered by index number 650-017-00-8 in Annex VI, part 3, table 3.1 of Regulation (EC) No 1272/2008 of the European Parliament and of the Council of 16 December 2008 on classification, labelling and packaging of substances and mixtures, and fulfil the three following conditions: \na) oxides of aluminium, silicon and zirconium are the main components present (in the fibres) within variable concentration ranges \nb) fibres have a length weighted geometric mean diameter less two standard geometric errors of 6 or less micrometres (µm) \nc) alkaline oxide and alkali earth oxide (Na2O+K2O+CaO+MgO+BaO) content less or equal to 18%  by weight "]
[null,74,"1,2-bis(2-methoxyethoxy)ethane (TEGDME; triglyme)","112-49-2","↑","solvent, absorbent","2012-06-18"]
[null,75,"1,2-dimethoxyethane (ethylene glycol dimethyl ether, EGDME)","110-71-4","↑","solvent, absorbent","2012-06-18"]
[null,76,"Diboron trioxide","1303-86-2","↑","glass raw materials, ceramics","2012-06-18"]
[null,77,"Formamide","75-12-7","↑","Agrochemicals, intermediate of chemicals","2012-06-18"]
[null,78,"Lead(II) bis(methanesulfonate)","17570-76-2","↑","Banned Substances specified by PFU Group (Lead compounds)","2012-06-18"]
[null,79,"1,3,5-tris(oxiranylmethyl)-1,3,5-triazine-2,4,6(1H,3H,5H)-trione (TGIC)","2451-62-9","↑","hardener in resins, electrical insulation material","2012-06-18"]
[null,80,"1,3,5-tris[(2S and 2R)-2,3-epoxypropyl]-1,3,5-triazine-2,4,6-(1H,3H,5H)-trione (β-TGIC)","59653-74-6","↑","hardener in resins, electrical insulation material","2012-06-18"]
[null,81,"4,4'-bis(dimethylamino)benzophenone (Michler's ketone)","90-94-8","↑","intermediate in the manufacture of dyes","2012-06-18"]
[null,82,"N,N,N',N'-tetramethyl-4,4'-methylenedianiline (Michler's base)","101-61-1","↑","intermediate in the manufacture of dyes","2012-06-18"]
[null,83,"[4-[[4-anilino-1-naphthyl][4-(dimethylamino)phenyl]methylene]cyclohexa-2,5-dien-1-ylidene] dimethylammonium chloride (C.I. Basic Blue 26)","2580-56-5","↑","dyes\n*)This applies when it contains ≥ 0.1% of Michler's ketone or Michler's base.","2012-06-18"]
[null,84,"[4-[4,4'-bis(dimethylamino) benzhydrylidene]cyclohexa-2,5-dien-1-ylidene]dimethylammonium chloride (C.I. Basic Violet 3)","548-62-9","↑","dyes\n*)This applies when it contains ≥ 0.1% of Michler's ketone or Michler's base.","2012-06-18"]
[null,85,"4,4'-bis(dimethylamino)-4''-(methylamino)trityl alcohol","561-41-1","↑","dyes\n*)This applies when it contains ≥ 0.1% of Michler's ketone or Michler's base.","2012-06-18"]
[null,86,"α,α-Bis[4-(dimethylamino)phenyl]-4(phenylamino)naphthalene-1-methanol (C.I. Solvent Blue 4)","6786-83-0","↑","dyes\n*)This applies when it contains ≥ 0.1% of Michler's ketone or Michler's base.","2012-06-18"]
[null,87,"Bis(pentabromophenyl) ether (decabromodiphenyl ether; DecaBDE)","1163-19-5","↑","Banned Substances specified by PFU Group (Polybrominated Diphenylethers (PBDEs))","2012-12-19"]
[null,88,"Pentacosafluorotridecanoic acid","72629-94-8","↑","coating, plating, commercial cleaning agent","2012-12-19"]
[null,89,"Tricosafluorododecanoic acid","307-55-1","↑","coating, plating, commercial cleaning agent","2012-12-19"]
[null,90,"Henicosafluoroundecanoic acid","2058-94-8","↑","coating, plating, commercial cleaning agent","2012-12-19"]
[null,91,"Heptacosafluorotetradecanoic acid","376-06-7","↑","coating, plating, commercial cleaning agent","2012-12-19"]
[null,92,"Diazene-1,2-dicarboxamide (C,C'-azodi(formamide))","123-77-3","↑","rubber and synthetic resin foam, bleach","2012-12-19"]
[null,93,"Cyclohexane-1,2-dicarboxylic anhydride [1],\ncis-cyclohexane-1,2-dicarboxylic anhydride [2],\ntrans-cyclohexane-1,2-dicarboxylic anhydride [3]","85-42-7\n13149-00-3\n14166-21-3","↑","epoxy resin hardeners","2012-12-19"]
[null,null,"[The individual cis- [2] and trans- [3] isomer substances and all possible combinations of the cis- and trans-isomers [1] are covered by this entry]"]
[null,94,"Hexahydromethylphthalic anhydride [1],\nHexahydro-4-methylphthalic anhydride [2],\nHexahydro-1-methylphthalic anhydride [3],\nHexahydro-3-methylphthalic anhydride [4]","25550-51-0\n19438-60-9\n48122-14-1\n57110-29-9 ","↑","epoxy resin hardeners","2012-12-19"]
[null,null,"[The individual isomers [2], [3] and [4] (including their cis- and trans- stereo isomeric forms) and all possible combinations of the isomers [1] are covered by this entry]"]
[null,95,"4-Nonylphenol, branched and linear","-","↑","aid for strings, cleaning, water-based coatings","2012-12-19"]
[null,null,"[substances with a linear and/or branched alkyl chain with a carbon number of 9 covalently bound in position 4 to phenol, covering also UVCB- and well-defined substances which include any of the individual isomers or a combination thereof]"]
[null,96,"4-(1,1,3,3-tetramethylbutyl)phenol, ethoxylated","-","↑","emulsifier for emulsion polymerization, aid for fiber and shoes","2012-12-19"]
[null,null,"[covering well-defined substances and UVCB substances, polymers and homologues]"]
[null,97,"Methoxyacetic acid","625-45-6","↑","agricultural chemical and pesticide intermediate, disinfectant","2012-12-19"]
[null,98,"N,N-dimethylformamide","68-12-2","↑","synthetic/artificial leather, plating solution","2012-12-19"]
[null,99,"Dibutyltin dichloride (DBTC)","683-18-1","↑","Banned Substances specified by PFU Group (Dibutyltin compounds (DBT))","2012-12-19"]
[null,100,"Lead monoxide (Lead oxide)","1317-36-8","↑","Banned Substances specified by PFU Group (Lead compounds)","2012-12-19"]
[null,101,"Orange lead (Lead tetroxide)","1314-41-6","↑","Banned Substances specified by PFU Group (Lead compounds)","2012-12-19"]
[null,102,"Lead bis (tetrafluoroborate)","13814-96-5","↑","Banned Substances specified by PFU Group (Lead compounds)","2012-12-19"]
[null,103,"Trilead bis(carbonate)dihydroxide","1319-46-6","↑","Banned Substances specified by PFU Group (Lead compounds)","2012-12-19"]
[null,104,"Lead titanium trioxide","12060-00-3","↑","Banned Substances specified by PFU Group (Lead compounds)","2012-12-19"]
[null,105,"Lead titanium zirconium oxide","12626-81-2","↑","Banned Substances specified by PFU Group (Lead compounds)","2012-12-19"]
[null,106,"Silicic acid, lead salt","11120-22-2","↑","Banned Substances specified by PFU Group (Lead compounds)","2012-12-19"]
[null,107,"Silicic acid (H2Si2O5), barium salt (1:1), lead-doped","68784-75-8","↑","Banned Substances specified by PFU Group (Lead compounds)","2012-12-19"]
[null,null,"[with lead (Pb) content above the applicable generic concentration limit for 'toxicity for reproduction' Repr. 1A (CLP) or category 1 (DSD); the substance is a member of the group entry of lead compounds, with index number 082-001-00-6 in Regulation (EC) No 1272/2008]"]
[null,108,"1-bromopropane (n-propyl bromide)","106-94-5","↑","Banned Substances specified by PFU Group (Ozone Depleting Substances)","2012-12-19"]
[null,109,"Methyloxirane (Propylene oxide)","75-56-9","↑","synthetic raw material, pigment, pharmaceutical intermediate, bactericide","2012-12-19"]
[null,110,"1,2-Benzenedicarboxylic acid, dipentylester, branched and linear","84777-06-0","↑","plasticizer","2012-12-19"]
[null,111,"Diisopentylphthalate (DIPP)","605-50-5","↑","production of combustion promoter,  plastic plasticizer","2012-12-19"]
[null,112,"N-pentyl-isopentylphthalate","776297-69-9","↑","plasticizer","2012-12-19"]
[null,113,"1,2-diethoxyethane","629-14-1","↑","solvent for organic synthesis","2012-12-19"]
[null,114,"Acetic acid, lead salt, basic","51404-69-4","↑","Banned Substances specified by PFU Group (Lead compounds)","2012-12-19"]
[null,115,"Lead oxide sulfate","12036-76-9","↑","Banned Substances specified by PFU Group (Lead compounds)","2012-12-19"]
[null,116,"[Phthalato(2-)]dioxotrilead","69011-06-9","↑","Banned Substances specified by PFU Group (Lead compounds)","2012-12-19"]
[null,117,"Dioxobis(stearato)trilead","12578-12-0","↑","Banned Substances specified by PFU Group (Lead compounds)","2012-12-19"]
[null,118,"Fatty acids, C16-18, lead salts","91031-62-8","↑","Banned Substances specified by PFU Group (Lead compounds)","2012-12-19"]
[null,119,"Lead cynamidate","20837-86-9","↑","Banned Substances specified by PFU Group (Lead compounds)","2012-12-19"]
[null,120,"Lead dinitrate","10099-74-8","↑","Banned Substances specified by PFU Group (Lead compounds)","2012-12-19"]
[null,121,"Pentalead tetraoxide sulphate","12065-90-6","↑","Banned Substances specified by PFU Group (Lead compounds)","2012-12-19"]
[null,122,"Pyrochlore, antimony lead yellow","8012-00-8","↑","Banned Substances specified by PFU Group (Lead compounds)","2012-12-19"]
[null,123,"Sulfurous acid, lead salt, dibasic","62229-08-7","↑","Banned Substances specified by PFU Group (Lead compounds)","2012-12-19"]
[null,124,"Tetraethyllead","78-00-2","↑","Banned Substances specified by PFU Group (Lead compounds)","2012-12-19"]
[null,125,"Tetralead trioxide sulphate","12202-17-4","↑","Banned Substances specified by PFU Group (Lead compounds)","2012-12-19"]
[null,126,"Trilead dioxide phosphonate","12141-20-7","↑","Banned Substances specified by PFU Group (Lead compounds)","2012-12-19"]
[null,127,"Furan","110-00-9","↑",null,"2012-12-19"]
[null,128,"Diethyl sulphate","64-67-5","↑","dye, pharmaceuticals, agricultural chemicals","2012-12-19"]
[null,129,"Dimethyl sulphate","77-78-1","↑","organic synthesis of methyl, synthetic raw material, pharmaceutical raw material","2012-12-19"]
[null,130,"3-ethyl-2-methyl-2-(3-methylbutyl)-1,3-oxazolidine","143860-04-2","↑",null,"2012-12-19"]
[null,131,"Dinoseb (6-sec-butyl-2,4-dinitrophenol)","88-85-7","↑","resin raw material","2012-12-19"]
[null,132,"4,4'-methylenedi-o-toluidine","838-88-0","↑","epoxy resin, urethane resin hardeners","2012-12-19"]
[null,133,"4,4'-oxydianiline and its salts","101-80-4","↑","synthetic raw material, cross-linker","2012-12-19"]
[null,134,"4-aminoazobenzene","60-09-3","↑","raw material, intermediate","2012-12-19"]
[null,135,"4-methyl-m-phenylenediamine (toluene-2,4-diamine)","95-80-7","↑","polyurethane resin material, dye intermediate","2012-12-19"]
[null,136,"6-methoxy-m-toluidine (p-cresidine)","120-71-8","↑","azo dye intermediate, intermediate","2012-12-19"]
[null,137,"Biphenyl-4-ylamine","92-67-1","↑","raw material, intermediate","2012-12-19"]
[null,138,"o-aminoazotoluene [(4-o-tolylazo-o-toluidine])","97-56-3","↑","raw material, intermediate","2012-12-19"]
[null,139,"o-toluidine","95-53-4","↑","organic synthetic raw material, solvent, organic synthetic dye","2012-12-19"]
[null,140,"N-methylacetamide","79-16-3","↑","solvent","2012-12-19"]
[null,141,"Cadmium","7440-43-9","↑","Banned Substances specified by PFU Group (Cadmium compounds)","2013-06-20"]
[null,142,"Cadmium Oxide","1306-19-0","↑","Banned Substances specified by PFU Group (Cadmium compounds)","2013-06-20"]
[null,143,"Ammonium pentadecafluorooctanoate (APFO)","3825-26-1","↑","Banned Substances specified by PFU Group (PFOA , PFOA-salts, PFOA-esters)","2013-06-20"]
[null,144,"Pentadecafluorooctanoic acid (PFOA)","335-67-1","↑","Banned Substances specified by PFU Group (PFOA , PFOA-salts, PFOA-esters)","2013-06-20"]
[null,145,"Dipentyl phthalate (DPP)","131-18-0","↑","plasticizer","2013-06-20"]
[null,146,"4-Nonylphenol, branched and linear, ethoxylated","-","↑","coating, emulsion polymerization agent","2013-06-20"]
[null,null,"[Substances with a linear and/or branched alkyl chain with a carbon number of 9 covalently bound in position 4 to phenol, ethoxylated covering UVCB- and well-defined substances, polymers and homologues, which include any of the individual isomers and/or combinations thereof]"]
[null,147,"Cadmium sulphide","1306-23-6","↑","Banned Substances specified by PFU Group (Cadmium compounds)","2013-12-16"]
[null,148,"Disodium 4-amino-3-[[4'-[(2,4-diaminophenyl)azo][1,1'-biphenyl]-4-yl]azo] -5-hydroxy-6-(phenylazo)naphthalene-2,7-disulphonate (C.I. Direct Black 38)","1937-37-7","↑","dye","2013-12-16"]
[null,149,"Dihexyl phthalate","84-75-3","↑","plasticizer","2013-12-16"]
[null,150,"Imidazolidine-2-thione; (2-imidazoline-2-thiol)","96-45-7","↑","vulcanized agent","2013-12-16"]
[null,151,"Trixylyl phosphate","25155-23-1","↑","fire resistant fluids, hydraulic fluids","2013-12-16"]
[null,152,"Disodium 3,3'-[[1,1'-biphenyl]-4,4'-diylbis(azo)]bis(4-aminonaphthalene-1-sulphonate) (C.I. Direct Red 28)","573-58-0","↑","dye","2013-12-16"]
[null,153,"Lead di (acetate)","301-04-2","↑","Banned Substances specified by PFU Group (Lead compounds)","2013-12-16"]
[null,154,"Cadmium chloride","10108-64-2","↑","Banned Substances specified by PFU Group (Cadmium compounds)","2014-06-16"]
[null,155,"1,2-Benzenedicarboxylic acid, dihexyl ester, branched and linear","68515-50-4","↑","sealant/jointing agents, general purpose PVC, adhesives and inks","2014-06-16"]
[null,156,"Sodium peroxometaborate","7632-04-4","↑","bleaching agent","2014-06-16"]
[null,157,"Sodium perborate; perboric acid, sodium salt","15120-21-5\n11138-47-9","↑","bleaching agent","2014-06-16"]
[null,158,"Cadmium fluoride (CdF2)","7790-79-6","↑","Banned Substances specified by PFU Group (Cadmium compounds)","2014-12-17"]
[null,159,"Cadmium sulphate","10124-36-4,\n31119-53-6","↑","Banned Substances specified by PFU Group (Cadmium compounds)","2014-12-17"]
[null,160,"2-(2H-benzotriazol-2-yl)-4,6-ditertpentylphenol (UV-328)","25973-55-1","↑","UV absorber","2014-12-17"]
[null,161,"Dioctyltin bis(2-ethylhexyl thioglycolate); 2-ethylhexyl 10-ethyl-4,4-dioctyl-7-oxo-8-oxa-3,5-dithia-4-stannatetradecanoate (DOTE)","15571-58-1","↑","Banned Substances specified by PFU Group (Dioctyltin compounds (DOT))","2014-12-17"]
[null,162,"Reaction mass of 2-ethylhexyl 10-ethyl-4,4-dioctyl-7-oxo-8-oxa-3,5-dithia-4-stannatetradecanoate and 2-ethylhexyl 10-ethyl-4-[[2-[(2-ethylhexyl)oxy]-2-oxoethyl]thio]-4-octyl-7-oxo-8-oxa-3,5-dithia-4-stannatetradecanoate (reaction mass of DOTE and MOTE)","-","↑","Banned Substances specified by PFU Group (Dioctyltin compounds (DOT))","2014-12-17"]
[null,163,"Phenol, 2-(2H-benzotriazol-2-yl)-4,6-bis(1,1-dimethlethyl)-; 2-benzotriazol-2-yl-4,6-di-tert-butylphenol (UV-320)","3846-71-7","↑","Banned Substances specified by PFU Group","2014-12-17"]
[null,164,"5-sec-butyl-2-(2,4-dimethylcyclohex-3-en-1-yl)-5-methyl-1,3-dioxane [1], 5-sec-butyl-2-(4,6-dimethylcyclohex-3-en-1-yl)-5-methyl-1,3-dioxane [2] [covering any of the individual stereoisomers of [1] and [2] or any combination thereof] ","-","↑","Synthetic perfume, soap, detergent, shampoo","2015-06-15"]
[null,165,"1,2-benzenedicarboxylic acid, di-C6-10-alkyl esters; 1,2-benzenedicarboxylic acid, mixed decyl and hexyl and octyldiesters with ≥ 0.3% of dihexyl phthalate (EC No. 201-559-5)","68515-51-5\n68648-93-1","↑","PVC plasticizer, cable, adhesive, lubricant, \ncoating","2015-06-15"]
[null,166,"Perfluorononan-1-oic-acid and its sodium and ammonium salts","375-95-1\n21049-39-8\n4149-60-4","↑","Processing aid for surfactant, coating materials, water repellent, fluoropolymer","2015-12-17"]
[null,167,"Nitrobenzene","98-95-3","↑","Production of chemicals and intermediate for further chemical processing","2015-12-17"]
[null,168,"2-(2H-benzotriazol-2-yl)-4-(tert-butyl)-6-(sec-butyl)phenol (UV-350)","36437-37-3","↑","UV stabilizer in plastic, rubber, polyurethanes and cosmetics","2015-12-17"]
[null,169,"2,4-di-tert-butyl-6-(5-chlorobenzotriazol-2-yl)phenol (UV-327)","3864-99-1","↑","UV stabilizer in plastic, rubber, polyurethanes and cosmetics","2015-12-17"]
[null,170,"1,3-propanesultone","1120-71-4","↑","Electrolyte fluid of lithium ion batteries","2015-12-17"]
[null,171,"Benzo[def]chrysene (Benzo[a]pyrene)","50-32-8","↑","Banned Substances specified by PFU Group (Polycyclic aromatic hydrocarbons (PAH))","2016-06-20"]

{"sheet":"Report_Example(Not contained)","index":2,"n_rows":82,"n_cols":11,"rows_kept":82,"cut":false,"hidden":false,"merged":[[3,4,3,5],[5,1,5,2],[6,1,6,2],[6,3,6,7],[7,1,7,2],[7,3,7,7],[17,1,17,2],[17,3,17,7],[18,1,18,2],[18,3,18,7],[11,1,11,2],[11,3,11,7],[14,1,14,2],[8,1,8,2],[8,3,8,7],[9,1,9,2],[9,3,9,7],[10,1,10,2],[10,3,10,7],[20,1,20,2],[20,3,20,7],[15,1,15,2],[16,1,16,2],[16,3,16,7],[37,2,37,4],[37,8,37,9],[37,10,37,15],[38,2,38,4],[38,8,38,9],[38,10,38,15],[24,5,24,6],[31,6,31,7],[35,1,36,1],[35,2,35,15],[36,2,36,4],[36,8,36,9],[36,10,36,15],[41,2,41,4],[41,8,41,9],[41,10,41,15],[42,2,42,4],[42,8,42,9],[42,10,42,15],[39,2,39,4],[39,8,39,9],[39,10,39,15],[40,2,40,4],[40,8,40,9],[40,10,40,15],[45,2,45,4],[45,8,45,9],[45,10,45,15],[46,2,46,4],[46,8,46,9],[46,10,46,15],[43,2,43,4],[43,8,43,9],[43,10,43,15],[44,2,44,4],[44,8,44,9],[44,10,44,15],[49,2,49,4],[49,8,49,9],[49,10,49,15],[50,2,50,4],[50,8,50,9],[50,10,50,15],[47,2,47,4],[47,8,47,9],[47,10,47,15],[48,2,48,4],[48,8,48,9],[48,10,48,15],[53,2,53,4],[53,8,53,9],[53,10,53,15],[54,2,54,4],[54,8,54,9],[54,10,54,15],[51,2,51,4],[51,8,51,9],[51,10,51,15],[52,2,52,4],[52,8,52,9],[52,10,52,15],[57,2,57,4],[57,8,57,9],[57,10,57,15],[58,2,58,4],[58,8,58,9],[58,10,58,15],[55,2,55,4],[55,8,55,9],[55,10,55,15],[56,2,56,4],[56,8,56,9],[56,10,56,15],[61,2,61,4],[61,8,61,9],[61,10,61,15],[62,2,62,4],[62,8,62,9],[62,10,62,15],[59,2,59,4],[59,8,59,9],[59,10,59,15],[60,2,60,4],[60,8,60,9],[60,10,60,15],[65,2,65,4],[65,8,65,9],[65,10,65,15],[66,2,66,4],[66,8,66,9],[66,10,66,15],[63,2,63,4],[63,8,63,9],[63,10,63,15],[64,2,64,4],[64,8,64,9],[64,10,64,15],[69,2,69,4],[69,8,69,9],[69,10,69,15],[70,2,70,4],[70,8,70,9],[70,10,70,15],[67,2,67,4],[67,8,67,9],[67,10,67,15],[68,2,68,4],[68,8,68,9],[68,10,68,15],[73,2,73,4],[73,8,73,9],[73,10,73,15],[74,2,74,4],[74,8,74,9],[74,10,74,15],[71,2,71,4],[71,8,71,9],[71,10,71,15],[72,2,72,4],[72,8,72,9],[72,10,72,15],[77,2,77,4],[77,8,77,9],[77,10,77,15],[78,2,78,4],[78,8,78,9],[78,10,78,15],[75,2,75,4],[75,8,75,9],[75,10,75,15],[76,2,76,4],[76,8,76,9],[76,10,76,15],[81,2,81,4],[81,8,81,9],[81,10,81,15],[79,2,79,4],[79,8,79,9],[79,10,79,15],[80,2,80,4],[80,8,80,9],[80,10,80,15]]}
["Rev.02_L03_ER","<Steps for Creation>"]
[null,"(1) See the Manual in the separate sheet and enter the data → (2) Run Check Entry below to confirm → (3) Print REACH Report below"]
[]
[null,null,null,null,"REACH Report   Rev.02L03"]
[null,"1. Information of the Respondent"]
[null,"Date (M/D/Y)   *Required",null,"2016-08-29"]
[null,"Person Responsible   *Required",null,"Taro Fuji, Director"]
[null,"Signature   *Required"]
[null,"Department   *Required",null,"Quality Assurance Dep."]
[null,"Company   *Required",null,"ABC Corp."]
[null,"Phone No.",null,"xxx-xxx-xxxx"]
[null,"E-mail",null,"xxxx@xxxxx.xxxxx.xx.xx"]
[]
[null,"2. Information of the Substances"]
[null,"Survey ID   *Required",null,-3001001]
[null,"PFU Group Product No.   *Required",null,"PA20001-0001"]
[null,"Product Name   *Required",null,"Power supply unit"]
[null,"Manufacturer's P/N",null,"ABC-0121XX"]
[null,"Manufacturer's Name",null,"CDE Co."]
[]
[null,"Remarks"]
[]
[null,"3. Contained or Not Contained"]
[]
[null,null,null,null," (Required)"]
[]
[null,null,"  * Not contained (below threshold) : Survey substance is not contained above 0.1wt%, calculated by the product mass as denominator  ⇒ End of entry "]
[null,null,"  * Contained (above threshold)       : Survey substance is contained above 0.1wt%, calculated by the product mass as denominator  ⇒ Go to Item 4"]
[]
[null,null,null,null,null,null,null,null,null,"End"]
[null,null,null,null,null,null,null,null,null,"End"]
[null,"4. Contained Substance      ※Enter only if contained above threshold in Item 3.",null,null,null,null,"Mass of Product [g]",null,null," (Required)"]
[null,null,"*1）Select chemical substances from the pull-down list. For substances subject to survey, refer to the SUBSTANCE LIST of the survey."]
[null,null,"*2) Describe a weight by weight concentration (wt%) of a contained chemical substance calculated by the product mass as denominator."]
[null,null,"*3) Describe weight (mg) of a contained chemical substance in the product."]
[null,"No.","Information of the Target Products (Required)"]
[null,null,"Substance Name *1",null,null,"Threshold Level","Concen-tration *2\n［wt%］","Content\n*3\n［mg］","Contained Portion",null,"Remarks"]
[null,1,null,null,null,"Content rate of the mass of the product is 0.1wt%.",null,{"$f":"IF(G38 > 0,I$32*G38*10,\"\")","v":""}]
[null,{"$f":"B38+1","v":2},null,null,null,"Content rate of the mass of the product is 0.1wt%.",null,""]
[null,{"$f":"B39+1","v":3},null,null,null,"Content rate of the mass of the product is 0.1wt%.",null,""]
[null,4,null,null,null,"Content rate of the mass of the product is 0.1wt%.",null,""]
[null,5,null,null,null,"Content rate of the mass of the product is 0.1wt%.",null,""]
[null,6,null,null,null,"Content rate of the mass of the product is 0.1wt%.",null,""]
[null,7,null,null,null,"Content rate of the mass of the product is 0.1wt%.",null,""]
[null,8,null,null,null,"Content rate of the mass of the product is 0.1wt%.",null,""]
[null,9,null,null,null,"Content rate of the mass of the product is 0.1wt%.",null,""]
[null,10,null,null,null,"Content rate of the mass of the product is 0.1wt%.",null,""]
[null,11,null,null,null,"Content rate of the mass of the product is 0.1wt%.",null,""]
[null,12,null,null,null,"Content rate of the mass of the product is 0.1wt%.",null,""]
[null,13,null,null,null,"Content rate of the mass of the product is 0.1wt%.",null,""]
[null,14,null,null,null,"Content rate of the mass of the product is 0.1wt%.",null,""]
[null,15,null,null,null,"Content rate of the mass of the product is 0.1wt%.",null,""]
[null,16,null,null,null,"Content rate of the mass of the product is 0.1wt%.",null,""]
[null,17,null,null,null,"Content rate of the mass of the product is 0.1wt%.",null,""]
[null,18,null,null,null,"Content rate of the mass of the product is 0.1wt%.",null,""]
[null,19,null,null,null,"Content rate of the mass of the product is 0.1wt%.",null,""]
[null,20,null,null,null,"Content rate of the mass of the product is 0.1wt%.",null,""]
[null,21,null,null,null,"Content rate of the mass of the product is 0.1wt%.",null,""]
[null,22,null,null,null,"Content rate of the mass of the product is 0.1wt%.",null,""]
[null,23,null,null,null,"Content rate of the mass of the product is 0.1wt%.",null,""]
[null,24,null,null,null,"Content rate of the mass of the product is 0.1wt%.",null,""]
[null,25,null,null,null,"Content rate of the mass of the product is 0.1wt%.",null,""]
[null,26,null,null,null,"Content rate of the mass of the product is 0.1wt%.",null,""]
[null,27,null,null,null,"Content rate of the mass of the product is 0.1wt%.",null,""]
[null,28,null,null,null,"Content rate of the mass of the product is 0.1wt%.",null,""]
[null,29,null,null,null,"Content rate of the mass of the product is 0.1wt%.",null,""]
[null,30,null,null,null,"Content rate of the mass of the product is 0.1wt%.",null,""]
[null,31,null,null,null,"Content rate of the mass of the product is 0.1wt%.",null,""]
[null,32,null,null,null,"Content rate of the mass of the product is 0.1wt%.",null,""]
[null,33,null,null,null,"Content rate of the mass of the product is 0.1wt%.",null,""]
[null,34,null,null,null,"Content rate of the mass of the product is 0.1wt%.",null,""]
[null,35,null,null,null,"Content rate of the mass of the product is 0.1wt%.",null,""]
[null,36,null,null,null,"Content rate of the mass of the product is 0.1wt%.",null,""]
[null,37,null,null,null,"Content rate of the mass of the product is 0.1wt%.",null,""]
[null,38,null,null,null,"Content rate of the mass of the product is 0.1wt%.",null,""]
[null,39,null,null,null,"Content rate of the mass of the product is 0.1wt%.",null,""]
[null,40,null,null,null,"Content rate of the mass of the product is 0.1wt%.",null,""]
[null,41,null,null,null,"Content rate of the mass of the product is 0.1wt%.",null,""]
[null,42,null,null,null,"Content rate of the mass of the product is 0.1wt%.",null,""]
[null,43,null,null,null,"Content rate of the mass of the product is 0.1wt%.",null,""]
[null,44,null,null,null,"Content rate of the mass of the product is 0.1wt%.",null,""]
[null,45,null,null,null,"Content rate of the mass of the product is 0.1wt%.",null,""]

{"sheet":"Report_Example(Contained)","index":3,"n_rows":82,"n_cols":11,"rows_kept":82,"cut":false,"hidden":false,"merged":[[3,4,3,5],[5,1,5,2],[6,1,6,2],[6,3,6,7],[7,1,7,2],[7,3,7,7],[17,1,17,2],[17,3,17,7],[18,1,18,2],[18,3,18,7],[11,1,11,2],[11,3,11,7],[14,1,14,2],[8,1,8,2],[8,3,8,7],[9,1,9,2],[9,3,9,7],[10,1,10,2],[10,3,10,7],[20,1,20,2],[20,3,20,7],[15,1,15,2],[16,1,16,2],[16,3,16,7],[37,2,37,4],[37,8,37,9],[37,10,37,15],[38,2,38,4],[38,8,38,9],[38,10,38,15],[24,5,24,6],[31,6,31,7],[35,1,36,1],[35,2,35,15],[36,2,36,4],[36,8,36,9],[36,10,36,15],[41,2,41,4],[41,8,41,9],[41,10,41,15],[42,2,42,4],[42,8,42,9],[42,10,42,15],[39,2,39,4],[39,8,39,9],[39,10,39,15],[40,2,40,4],[40,8,40,9],[40,10,40,15],[45,2,45,4],[45,8,45,9],[45,10,45,15],[46,2,46,4],[46,8,46,9],[46,10,46,15],[43,2,43,4],[43,8,43,9],[43,10,43,15],[44,2,44,4],[44,8,44,9],[44,10,44,15],[49,2,49,4],[49,8,49,9],[49,10,49,15],[50,2,50,4],[50,8,50,9],[50,10,50,15],[47,2,47,4],[47,8,47,9],[47,10,47,15],[48,2,48,4],[48,8,48,9],[48,10,48,15],[53,2,53,4],[53,8,53,9],[53,10,53,15],[54,2,54,4],[54,8,54,9],[54,10,54,15],[51,2,51,4],[51,8,51,9],[51,10,51,15],[52,2,52,4],[52,8,52,9],[52,10,52,15],[57,2,57,4],[57,8,57,9],[57,10,57,15],[58,2,58,4],[58,8,58,9],[58,10,58,15],[55,2,55,4],[55,8,55,9],[55,10,55,15],[56,2,56,4],[56,8,56,9],[56,10,56,15],[61,2,61,4],[61,8,61,9],[61,10,61,15],[62,2,62,4],[62,8,62,9],[62,10,62,15],[59,2,59,4],[59,8,59,9],[59,10,59,15],[60,2,60,4],[60,8,60,9],[60,10,60,15],[65,2,65,4],[65,8,65,9],[65,10,65,15],[66,2,66,4],[66,8,66,9],[66,10,66,15],[63,2,63,4],[63,8,63,9],[63,10,63,15],[64,2,64,4],[64,8,64,9],[64,10,64,15],[69,2,69,4],[69,8,69,9],[69,10,69,15],[70,2,70,4],[70,8,70,9],[70,10,70,15],[67,2,67,4],[67,8,67,9],[67,10,67,15],[68,2,68,4],[68,8,68,9],[68,10,68,15],[73,2,73,4],[73,8,73,9],[73,10,73,15],[74,2,74,4],[74,8,74,9],[74,10,74,15],[71,2,71,4],[71,8,71,9],[71,10,71,15],[72,2,72,4],[72,8,72,9],[72,10,72,15],[77,2,77,4],[77,8,77,9],[77,10,77,15],[78,2,78,4],[78,8,78,9],[78,10,78,15],[75,2,75,4],[75,8,75,9],[75,10,75,15],[76,2,76,4],[76,8,76,9],[76,10,76,15],[81,2,81,4],[81,8,81,9],[81,10,81,15],[79,2,79,4],[79,8,79,9],[79,10,79,15],[80,2,80,4],[80,8,80,9],[80,10,80,15]]}
["Rev.02_L03_ER","<Steps for Creation>"]
[null,"(1) See the Manual in the separate sheet and enter the data → (2) Run Check Entry below to confirm → (3) Print REACH Report below"]
[]
[null,null,null,null,"REACH Report   Rev.02L03"]
[null,"1. Information of the Respondent"]
[null,"Date (M/D/Y)   *Required",null,"2016-08-29"]
[null,"Person Responsible   *Required",null,"Taro Fuji, Director"]
[null,"Signature   *Required"]
[null,"Department   *Required",null,"Quality Assurance Dep."]
[null,"Company   *Required",null,"ABC Corp."]
[null,"Phone No.",null,"xxx-xxx-xxxx"]
[null,"E-mail",null,"xxxx@xxxxx.xxxxx.xx.xx"]
[]
[null,"2. Information of the Substances"]
[null,"Survey ID   *Required",null,-3001001]
[null,"PFU Group Product No.   *Required",null,"PA20001-0001"]
[null,"Product Name   *Required",null,"Power supply unit"]
[null,"Manufacturer's P/N",null,"ABC-0121XX"]
[null,"Manufacturer's Name",null,"CDE Co."]
[]
[null,"Remarks"]
[]
[null,"3. Contained or Not Contained"]
[]
[null,null,null,null," (Required)"]
[]
[null,null,"  * Not contained (below threshold) : Survey substance is not contained above 0.1wt%, calculated by the product mass as denominator  ⇒ End of entry "]
[null,null,"  * Contained (above threshold)       : Survey substance is contained above 0.1wt%, calculated by the product mass as denominator  ⇒ Go to Item 4"]
[]
[null,null,null,null,null,null,null,null,null,"End"]
[null,null,null,null,null,null,null,null,null,"End"]
[null,"4. Contained Substance      ※Enter only if contained above threshold in Item 3.",null,null,null,null,"Mass of Product [g]",null,150," (Required)"]
[null,null,"*1）Select chemical substances from the pull-down list. For substances subject to survey, refer to the SUBSTANCE LIST of the survey."]
[null,null,"*2) Describe a weight by weight concentration (wt%) of a contained chemical substance calculated by the product mass as denominator."]
[null,null,"*3) Describe weight (mg) of a contained chemical substance in the product."]
[null,"No.","Information of the Target Products (Required)"]
[null,null,"Substance Name *1",null,null,"Threshold Level","Concen-tration *2\n［wt%］","Content\n*3\n［mg］","Contained Portion",null,"Remarks"]
[null,1,"(3) Dibutyl phthalate (DBP) [CAS:84-74-2]",null,null,"Content rate of the mass of the product is 0.1wt%.",2,{"$f":"IF(G38 > 0,I$32*G38*10,\"\")","v":3000},"Cable Coatings"]
[null,{"$f":"B38+1","v":2},"(9) Bis(2-ethylhexyl)phthalate (DEHP) [CAS:117-81-7]",null,null,"Content rate of the mass of the product is 0.1wt%.",1,1500,"Cable Coatings"]
[null,{"$f":"B39+1","v":3},null,null,null,"Content rate of the mass of the product is 0.1wt%.",null,""]
[null,4,null,null,null,"Content rate of the mass of the product is 0.1wt%.",null,""]
[null,5,null,null,null,"Content rate of the mass of the product is 0.1wt%.",null,""]
[null,6,null,null,null,"Content rate of the mass of the product is 0.1wt%.",null,""]
[null,7,null,null,null,"Content rate of the mass of the product is 0.1wt%.",null,""]
[null,8,null,null,null,"Content rate of the mass of the product is 0.1wt%.",null,""]
[null,9,null,null,null,"Content rate of the mass of the product is 0.1wt%.",null,""]
[null,10,null,null,null,"Content rate of the mass of the product is 0.1wt%.",null,""]
[null,11,null,null,null,"Content rate of the mass of the product is 0.1wt%.",null,""]
[null,12,null,null,null,"Content rate of the mass of the product is 0.1wt%.",null,""]
[null,13,null,null,null,"Content rate of the mass of the product is 0.1wt%.",null,""]
[null,14,null,null,null,"Content rate of the mass of the product is 0.1wt%.",null,""]
[null,15,null,null,null,"Content rate of the mass of the product is 0.1wt%.",null,""]
[null,16,null,null,null,"Content rate of the mass of the product is 0.1wt%.",null,""]
[null,17,null,null,null,"Content rate of the mass of the product is 0.1wt%.",null,""]
[null,18,null,null,null,"Content rate of the mass of the product is 0.1wt%.",null,""]
[null,19,null,null,null,"Content rate of the mass of the product is 0.1wt%.",null,""]
[null,20,null,null,null,"Content rate of the mass of the product is 0.1wt%.",null,""]
[null,21,null,null,null,"Content rate of the mass of the product is 0.1wt%.",null,""]
[null,22,null,null,null,"Content rate of the mass of the product is 0.1wt%.",null,""]
[null,23,null,null,null,"Content rate of the mass of the product is 0.1wt%.",null,""]
[null,24,null,null,null,"Content rate of the mass of the product is 0.1wt%.",null,""]
[null,25,null,null,null,"Content rate of the mass of the product is 0.1wt%.",null,""]
[null,26,null,null,null,"Content rate of the mass of the product is 0.1wt%.",null,""]
[null,27,null,null,null,"Content rate of the mass of the product is 0.1wt%.",null,""]
[null,28,null,null,null,"Content rate of the mass of the product is 0.1wt%.",null,""]
[null,29,null,null,null,"Content rate of the mass of the product is 0.1wt%.",null,""]
[null,30,null,null,null,"Content rate of the mass of the product is 0.1wt%.",null,""]
[null,31,null,null,null,"Content rate of the mass of the product is 0.1wt%.",null,""]
[null,32,null,null,null,"Content rate of the mass of the product is 0.1wt%.",null,""]
[null,33,null,null,null,"Content rate of the mass of the product is 0.1wt%.",null,""]
[null,34,null,null,null,"Content rate of the mass of the product is 0.1wt%.",null,""]
[null,35,null,null,null,"Content rate of the mass of the product is 0.1wt%.",null,""]
[null,36,null,null,null,"Content rate of the mass of the product is 0.1wt%.",null,""]
[null,37,null,null,null,"Content rate of the mass of the product is 0.1wt%.",null,""]
[null,38,null,null,null,"Content rate of the mass of the product is 0.1wt%.",null,""]
[null,39,null,null,null,"Content rate of the mass of the product is 0.1wt%.",null,""]
[null,40,null,null,null,"Content rate of the mass of the product is 0.1wt%.",null,""]
[null,41,null,null,null,"Content rate of the mass of the product is 0.1wt%.",null,""]
[null,42,null,null,null,"Content rate of the mass of the product is 0.1wt%.",null,""]
[null,43,null,null,null,"Content rate of the mass of the product is 0.1wt%.",null,""]
[null,44,null,null,null,"Content rate of the mass of the product is 0.1wt%.",null,""]
[null,45,null,null,null,"Content rate of the mass of the product is 0.1wt%.",null,""]

{"sheet":"List","index":4,"n_rows":171,"n_cols":3,"rows_kept":171,"cut":false,"hidden":true,"merged":[]}
[]
[null,"Not contained"]
[null,"(1) Anthracene [CAS:120-12-7]","120-12-7"]
[null,"(2) 4,4’-Diaminodiphenylmethane (4,4'-MDA) [CAS:101-77-9]","101-77-9"]
[null,"(3) Dibutyl phthalate (DBP) [CAS:84-74-2]","84-74-2"]
[null,"(4) Cobalt dichloride [CAS:7646-79-9]","7646-79-9"]
[null,"(5) Diarsenic pentaoxide [CAS:1303-28-2]","1303-28-2"]
[null,"(6) Diarsenic trioxide [CAS:1327-53-3]","1327-53-3"]
[null,"(7) Sodium dichromate [CAS:7789-12-0, 10588-01-9]","7789-12-0\n10588-01-9"]
[null,"(8) 5-tert-butyl-2,4,6-trinitro-m-xylene (musk xylene) [CAS:81-15-2]","81-15-2"]
[null,"(9) Bis(2-ethylhexyl)phthalate (DEHP) [CAS:117-81-7]","117-81-7"]
[null,"(10) Hexabromocyclododecane (HBCDD) and all major diastereoisomers identified\n(α-HBCDD,β-HBCDD,γ-HBCDD) [CAS:25637-99-4, 3194-55-6, 134237-50-6 (α-HBCDD), 134237-51-7 (β-HBCDD), 134237-52-8 (γ-HBCDD)]","25637-99-4\n3194-55-6\n134237-50-6 (α-HBCDD)\n134237-51-7 (β-HBCDD)\n134237-52-8 (γ-HBCDD)"]
[null,"(11) Short Chain Chlorinated Paraffins (C10-C13) [CAS:85535-84-8]","85535-84-8"]
[null,"(12) Bis(tributyltin)oxide (TBTO) [CAS:56-35-9]","56-35-9"]
[null,"(13) Lead hydrogen arsenate [CAS:7784-40-9]","7784-40-9"]
[null,"(14) Benzyl butyl phthalate (BBP) [CAS:85-68-7]","85-68-7"]
[null,"(15) Triethyl arsenate [CAS:15606-95-8]","15606-95-8"]
[null,"(16) Anthracene oil [CAS:90640-80-5]","90640-80-5"]
[null,"(17) Anthracene oil, anthracene paste, distn. Lights [CAS:91995-17-4]","91995-17-4"]
[null,"(18) Anthracene oil, anthracene paste, anthracene fraction [CAS:91995-15-2]","91995-15-2"]
[null,"(19) Anthracene oil, anthracene-low [CAS:90640-82-7]","90640-82-7"]
[null,"(20) Anthracene oil, anthracene paste [CAS:90640-81-6]","90640-81-6"]
[null,"(21) Coal tar pitch, high temperature [CAS:65996-93-2]","65996-93-2"]
[null,"(24) 2,4-Dinitrotoluene [CAS:121-14-2]","121-14-2"]
[null,"(25) Diisobutyl phthalate (DIBP) [CAS:84-69-5]","84-69-5"]
[null,"(26) Lead chromate [CAS:7758-97-6]","7758-97-6"]
[null,"(27) Lead chromate molybdate sulfate red (C.I. Pigment Red 104) [CAS:12656-85-8]","12656-85-8"]
[null,"(28) C.I. Pigment Yellow 34 [CAS:1344-37-2]","1344-37-2"]
[null,"(29) Tris(2-chloroethyl)phosphate (TCEP) [CAS:115-96-8]","115-96-8"]
[null,"(30) Acrylamide [CAS:79-06-1]","79-06-1"]
[null,"(31) Trichloroethylene [CAS:79-01-6]","79-01-6"]
[null,"(32) Boric acid [CAS:10043-35-3, 11113-50-1]","10043-35-3\n11113-50-1"]
[null,"(33) Disodium tetraborate, anhydrous [CAS:1303-96-4, 1330-43-4, 12179-04-3]","1303-96-4\n1330-43-4\n12179-04-3"]
[null,"(34) Tetraboron disodium heptaoxide, hydrate [CAS:12267-73-1]","12267-73-1"]
[null,"(35) Sodium chromate [CAS:7775-11-3]","7775-11-3"]
[null,"(36) Potassium chromate [CAS:7789-00-6]","7789-00-6"]
[null,"(37) Ammonium dichromate [CAS:7789-09-5]","7789-09-5"]
[null,"(38) Potassium dichromate [CAS:7778-50-9]","7778-50-9"]
[null,"(39) Cobalt(II) sulphate [CAS:10124-43-3]","10124-43-3"]
[null,"(40) Cobalt(II) dinitrate [CAS:10141-05-6]","10141-05-6"]
[null,"(41) Cobalt(II) carbonate [CAS:513-79-1]","513-79-1"]
[null,"(42) Cobalt(II) diacetate [CAS:71-48-7]","71-48-7"]
[null,"(43) 2-Methoxyethanol [CAS:109-86-4]","109-86-4"]
[null,"(44) 2-Ethoxyethanol [CAS:110-80-5]","110-80-5"]
[null,"(45) Chromium trioxide [CAS:1333-82-0]","1333-82-0"]
[null,"(46) Acids generated from chromium trioxide and their oligomers Group containing: Chromic acid, Dichromic acid, Oligomers of chromic acid and dichromic acid [CAS:7738-94-5 (Chromic acid), CAS:13530-68-2 (Dichromic acid), CAS:- (Oligomers)]","7738-94-5 (Chromic acid)\n13530-68-2 (Dichromic acid)\n- (Oligomers)"]
[null,"(47) 2-Ethoxyethyl acetate [CAS:111-15-9]","111-15-9"]
[null,"(48) Strontium chromate [CAS:7789-06-2]","7789-06-2"]
[null,"(49) 1,2-Benzenedicarboxylic acid, di-C7-11-branched and linear alkyl esters (DHNUP) [CAS:68515-42-4]","68515-42-4"]
[null,"(50) Hydrazine [CAS:7803-57-8, 302-01-2]","7803-57-8\n302-01-2"]
[null,"(51) 1-methyl-2-pyrrolidone [CAS:872-50-4]","872-50-4"]
[null,"(52) 1,2,3-trichloropropane [CAS:96-18-4]","96-18-4"]
[null,"(53) 1,2-benzenedicarboxylic acid; di-C6-8-branched alkylesters, C7-rich (DIHP) [CAS:71888-89-6]","71888-89-6"]
[null,"(54) Calcium arsenate [CAS:7778-44-1]","7778-44-1"]
[null,"(55) Bis(2-methoxyethyl) ether [CAS:111-96-6]","111-96-6"]
[null,"(56) Potassium hydroxyoctaoxodizincatedi-chromate [CAS:11103-86-9]","11103-86-9"]
[null,"(57) Lead dipicrate [CAS:6477-64-1]","6477-64-1"]
[null,"(58) N,N-dimethylacetamide (DMAC) [CAS:127-19-5]","127-19-5"]
[null,"(59) Arsenic acid [CAS:7778-39-4]","7778-39-4"]
[null,"(60) 2-Methoxyaniline; o-Anisidine [CAS:90-04-0]","90-04-0"]
[null,"(61) Trilead diarsenate [CAS:3687-31-8]","3687-31-8"]
[null,"(62) 1,2-Dichloroethane [CAS:107-06-2]","107-06-2"]
[null,"(63) Pentazinc chromate octahydroxide [CAS:49663-84-5]","49663-84-5"]
[null,"(64) 4-(1,1,3,3-tetramethylbutyl)phenol, (4-tert-Octylphenol) [CAS:140-66-9]","140-66-9"]
[null,"(65) Formaldehyde, oligomeric reaction products with aniline (technical MDA) [CAS:25214-70-4]","25214-70-4"]
[null,"(66) Bis(2-methoxyethyl) phthalate [CAS:117-82-8]","117-82-8"]
[null,"(67) Lead azide Lead diazide [CAS:13424-46-9]","13424-46-9"]
[null,"(68) Lead styphnate [CAS:15245-44-0]","15245-44-0"]
[null,"(69) 2,2'-dichloro-4,4'-methylenedianiline (MOCA) [CAS:101-14-4]","101-14-4"]
[null,"(70) Phenolphthalein [CAS:77-09-8]","77-09-8"]
[null,"(71) Dichromium tris (chromate) [CAS:24613-89-6]","24613-89-6"]
[null,"(72) Aluminosilicate, Refractory Ceramic Fibres [CAS:-]","-"]
[null,"(73) Zirconia Aluminosilicate, Refractory Ceramic Fibres [CAS:-]","-"]
[null,"(74) 1,2-bis(2-methoxyethoxy)ethane (TEGDME; triglyme) [CAS:112-49-2]","112-49-2"]
[null,"(75) 1,2-dimethoxyethane (ethylene glycol dimethyl ether, EGDME) [CAS:110-71-4]","110-71-4"]
[null,"(76) Diboron trioxide [CAS:1303-86-2]","1303-86-2"]
[null,"(77) Formamide [CAS:75-12-7]","75-12-7"]
[null,"(78) Lead(II) bis(methanesulfonate) [CAS:17570-76-2]","17570-76-2"]
[null,"(79) 1,3,5-tris(oxiranylmethyl)-1,3,5-triazine-2,4,6(1H,3H,5H)-trione (TGIC) [CAS:2451-62-9]","2451-62-9"]
[null,"(80) 1,3,5-tris[(2S and 2R)-2,3-epoxypropyl]-1,3,5-triazine-2,4,6-(1H,3H,5H)-trione (β-TGIC) [CAS:59653-74-6]","59653-74-6"]
[null,"(81) 4,4'-bis(dimethylamino)benzophenone (Michler's ketone) [CAS:90-94-8]","90-94-8"]
[null,"(82) N,N,N',N'-tetramethyl-4,4'-methylenedianiline (Michler's base) [CAS:101-61-1]","101-61-1"]
[null,"(83) [4-[[4-anilino-1-naphthyl][4-(dimethylamino)phenyl]methylene]cyclohexa-2,5-dien-1-ylidene] dimethylammonium chloride (C.I. Basic Blue 26) [CAS:2580-56-5]","2580-56-5"]
[null,"(84) [4-[4,4'-bis(dimethylamino) benzhydrylidene]cyclohexa-2,5-dien-1-ylidene]dimethylammonium chloride (C.I. Basic Violet 3) [CAS:548-62-9]","548-62-9"]
[null,"(85) 4,4'-bis(dimethylamino)-4''-(methylamino)trityl alcohol [CAS:561-41-1]","561-41-1"]
[null,"(86) α,α-Bis[4-(dimethylamino)phenyl]-4(phenylamino)naphthalene-1-methanol (C.I. Solvent Blue 4) [CAS:6786-83-0]","6786-83-0"]
[null,"(87) Bis(pentabromophenyl) ether (decabromodiphenyl ether; DecaBDE) [CAS:1163-19-5]","1163-19-5"]
[null,"(88) Pentacosafluorotridecanoic acid [CAS:72629-94-8]","72629-94-8"]
[null,"(89) Tricosafluorododecanoic acid [CAS:307-55-1]","307-55-1"]
[null,"(90) Henicosafluoroundecanoic acid [CAS:2058-94-8]","2058-94-8"]
[null,"(91) Heptacosafluorotetradecanoic acid [CAS:376-06-7]","376-06-7"]
[null,"(92) Diazene-1,2-dicarboxamide (C,C'-azodi(formamide)) [CAS:123-77-3]","123-77-3"]
[null,"(93) Cyclohexane-1,2-dicarboxylic anhydride [1], cis-cyclohexane-1,2-dicarboxylic anhydride [2], trans-cyclohexane-1,2-dicarboxylic anhydride [3] [CAS:85-42-7, 13149-00-3, 14166-21-3]","85-42-7\n13149-00-3\n14166-21-3"]
[null,"(94) Hexahydromethylphthalic anhydride [1], Hexahydro-4-methylphthalic anhydride [2], Hexahydro-1-methylphthalic anhydride [3], Hexahydro-3-methylphthalic anhydride [4] [CAS:25550-51-0, 19438-60-9, 48122-14-1, 57110-29-9]","25550-51-0\n19438-60-9\n48122-14-1\n57110-29-9"]
[null,"(95) 4-Nonylphenol, branched and linear [CAS:-]","-"]
[null,"(96) 4-(1,1,3,3-tetramethylbutyl)phenol, ethoxylated [CAS:-]","-"]
[null,"(97) Methoxyacetic acid [CAS:625-45-6]","625-45-6"]
[null,"(98) N,N-dimethylformamide [CAS:68-12-2]","68-12-2"]
[null,"(99) Dibutyltin dichloride (DBTC) [CAS:683-18-1]","683-18-1"]
[null,"(100) Lead monoxide (Lead oxide) [CAS:1317-36-8]","1317-36-8"]
[null,"(101) Orange lead (Lead tetroxide) [CAS:1314-41-6]","1314-41-6"]
[null,"(102) Lead bis (tetrafluoroborate) [CAS:13814-96-5]","13814-96-5"]
[null,"(103) Trilead bis(carbonate)dihydroxide [CAS:1319-46-6]","1319-46-6"]
[null,"(104) Lead titanium trioxide [CAS:12060-00-3]","12060-00-3"]
[null,"(105) Lead titanium zirconium oxide [CAS:12626-81-2]","12626-81-2"]
[null,"(106) Silicic acid, lead salt [CAS:11120-22-2]","11120-22-2"]
[null,"(107) Silicic acid (H2Si2O5), barium salt (1:1), lead-doped [CAS:68784-75-8]","68784-75-8"]
[null,"(108) 1-bromopropane (n-propyl bromide) [CAS:106-94-5]","106-94-5"]
[null,"(109) Methyloxirane (Propylene oxide) [CAS:75-56-9]","75-56-9"]
[null,"(110) 1,2-Benzenedicarboxylic acid, dipentylester, branched and linear [CAS:84777-06-0]","84777-06-0"]
[null,"(111) Diisopentylphthalate (DIPP) [CAS:605-50-5]","605-50-5"]
[null,"(112) N-pentyl-isopentylphthalate [CAS:776297-69-9]","776297-69-9"]
[null,"(113) 1,2-diethoxyethane [CAS:629-14-1]","629-14-1"]
[null,"(114) Acetic acid, lead salt, basic [CAS:51404-69-4]","51404-69-4"]
[null,"(115) Lead oxide sulfate [CAS:12036-76-9]","12036-76-9"]
[null,"(116) [Phthalato(2-)]dioxotrilead [CAS:69011-06-9]","69011-06-9"]
[null,"(117) Dioxobis(stearato)trilead [CAS:12578-12-0]","12578-12-0"]
[null,"(118) Fatty acids, C16-18, lead salts [CAS:91031-62-8]","91031-62-8"]
[null,"(119) Lead cynamidate [CAS:20837-86-9]","20837-86-9"]
[null,"(120) Lead dinitrate [CAS:10099-74-8]","10099-74-8"]
[null,"(121) Pentalead tetraoxide sulphate [CAS:12065-90-6]","12065-90-6"]
[null,"(122) Pyrochlore, antimony lead yellow [CAS:8012-00-8]","8012-00-8"]
[null,"(123) Sulfurous acid, lead salt, dibasic [CAS:62229-08-7]","62229-08-7"]
[null,"(124) Tetraethyllead [CAS:78-00-2]","78-00-2"]
[null,"(125) Tetralead trioxide sulphate [CAS:12202-17-4]","12202-17-4"]
[null,"(126) Trilead dioxide phosphonate [CAS:12141-20-7]","12141-20-7"]
[null,"(127) Furan [CAS:110-00-9]","110-00-9"]
[null,"(128) Diethyl sulphate [CAS:64-67-5]","64-67-5"]
[null,"(129) Dimethyl sulphate [CAS:77-78-1]","77-78-1"]
[null,"(130) 3-ethyl-2-methyl-2-(3-methylbutyl)-1,3-oxazolidine [CAS:143860-04-2]","143860-04-2"]
[null,"(131) Dinoseb (6-sec-butyl-2,4-dinitrophenol) [CAS:88-85-7]","88-85-7"]
[null,"(132) 4,4'-methylenedi-o-toluidine [CAS:838-88-0]","838-88-0"]
[null,"(133) 4,4'-oxydianiline and its salts [CAS:101-80-4]","101-80-4"]
[null,"(134) 4-aminoazobenzene [CAS:60-09-3]","60-09-3"]
[null,"(135) 4-methyl-m-phenylenediamine (toluene-2,4-diamine) [CAS:95-80-7]","95-80-7"]
[null,"(136) 6-methoxy-m-toluidine (p-cresidine) [CAS:120-71-8]","120-71-8"]
[null,"(137) Biphenyl-4-ylamine [CAS:92-67-1]","92-67-1"]
[null,"(138) o-aminoazotoluene (4-o-tolylazo-o-toluidine) [CAS:97-56-3]","97-56-3"]
[null,"(139) o-toluidine [CAS:95-53-4]","95-53-4"]
[null,"(140) N-methylacetamide [CAS:79-16-3]","79-16-3"]
[null,"(141) Cadmium [CAS:7440-43-9]","7440-43-9"]
[null,"(142) Cadmium Oxide [CAS:1306-19-0]","1306-19-0"]
[null,"(143) Ammonium pentadecafluorooctanoate (APFO) [CAS:3825-26-1]","3825-26-1"]
[null,"(144) Pentadecafluorooctanoic acid (PFOA) [CAS:335-67-1]","335-67-1"]
[null,"(145) Dipentyl phthalate (DPP) [CAS:131-18-0]","131-18-0"]
[null,"(146) 4-Nonylphenol, branched and linear, ethoxylated [CAS:-]","-"]
[null,"(147) Cadmium sulphide [CAS:1306-23-6]","1306-23-6"]
[null,"(148) Disodium 4-amino-3-[[4'-[(2,4-diaminophenyl)azo][1,1'-biphenyl]-4-yl]azo] -5-hydroxy-6-(phenylazo)naphthalene-2,7-disulphonate (C.I. Direct Black 38) [CAS:1937-37-7]","1937-37-7"]
[null,"(149) Dihexyl phthalate [CAS:84-75-3]","84-75-3"]
[null,"(150) Imidazolidine-2-thione; (2-imidazoline-2-thiol) [CAS:96-45-7]","96-45-7"]
[null,"(151) Trixylyl phosphate [CAS:25155-23-1]","25155-23-1"]
[null,"(152) Disodium 3,3'-[[1,1'-biphenyl]-4,4'-diylbis(azo)]bis(4-aminonaphthalene-1-sulphonate) (C.I. Direct Red 28) [CAS:573-58-0]","573-58-0"]
[null,"(153) Lead di (acetate) [CAS:301-04-2]","301-04-2"]
[null,"(154) Cadmium chloride [CAS:10108-64-2]","10108-64-2"]
[null,"(155) 1,2-Benzenedicarboxylic acid, dihexyl ester, branched and linear [CAS:68515-50-4]","68515-50-4"]
[null,"(156) Sodium peroxometaborate [CAS:7632-04-4]","7632-04-4"]
[null,"(157) Sodium perborate; perboric acid, sodium salt [CAS:15120-21-5, 11138-47-9]","15120-21-5\n11138-47-9"]
[null,"(158) Cadmium fluoride (CdF2) [CAS:7790-79-6]","7790-79-6"]
[null,"(159) Cadmium sulphate [CAS:10124-36-4, 31119-53-6]","10124-36-4\n31119-53-6"]
[null,"(160) 2-(2H-benzotriazol-2-yl)-4,6-ditertpentylphenol (UV-328) [CAS:25973-55-1]","25973-55-1"]
[null,"(161) Dioctyltin bis(2-ethylhexyl thioglycolate); 2-ethylhexyl 10-ethyl-4,4-dioctyl-7-oxo-8-oxa-3,5-dithia-4-stannatetradecanoate (DOTE) [CAS:15571-58-1]","15571-58-1"]
[null,"(162) Reaction mass of 2-ethylhexyl 10-ethyl-4,4-dioctyl-7-oxo-8-oxa-3,5-dithia-4-stannatetradecanoate and 2-ethylhexyl 10-ethyl-4-[[2-[(2-ethylhexyl)oxy]-2-oxoethyl]thio]-4-octyl-7-oxo-8-oxa-3,5-dithia-4-stannatetradecanoate (reaction mass of DOTE and MOTE) [CAS:-]","-"]
[null,"(163) Phenol, 2-(2H-benzotriazol-2-yl)-4,6-bis(1,1-dimethlethyl)-; 2-benzotriazol-2-yl-4,6-di-tert-butylphenol (UV-320) [CAS:3846-71-7]","3846-71-7"]
[null,"(164) 5-sec-butyl-2-(2,4-dimethylcyclohex-3-en-1-yl)-5-methyl-1,3-dioxane [1], 5-sec-butyl-2-(4,6-dimethylcyclohex-3-en-1-yl)-5-methyl-1,3-dioxane [2] [covering any of the individual stereoisomers of [1] and [2] or any combination thereof]  [CAS:-]","-"]
[null,"(165) 1,2-benzenedicarboxylic acid, di-C6-10-alkyl esters; 1,2-benzenedicarboxylic acid, mixed decyl and hexyl and octyldiesters with ≥ 0.3% of dihexyl phthalate (EC No. 201-559-5) [CAS:68515-51-5, 68648-93-1]","68515-51-5\n68648-93-1"]
[null,"(166) Perfluorononan-1-oic-acid and its sodium and ammonium salts [CAS:375-95-1, 21049-39-8, 4149-60-4]","375-95-1\n21049-39-8\n4149-60-4"]
[null,"(167) Nitrobenzene [CAS:98-95-3]","98-95-3"]
[null,"(168) 2-(2H-benzotriazol-2-yl)-4-(tert-butyl)-6-(sec-butyl)phenol (UV-350) [CAS:36437-37-3]","36437-37-3"]
[null,"(169) 2,4-di-tert-butyl-6-(5-chlorobenzotriazol-2-yl)phenol (UV-327) [CAS:3864-99-1]","3864-99-1"]
[null,"(170) 1,3-propanesultone [CAS:1120-71-4]","1120-71-4"]
[null,"(171) Benzo[def]chrysene (Benzo[a]pyrene) [CAS:50-32-8]","50-32-8"]